bitfinex/quotes_BTCUSD_20241010
["timestamp","ask_amount","ask_price","bid_price","bid_amount"]
[1728567166331,0.0001,61109.0,61104.0,0.163655]
[1728567166558,0.0001,61109.0,61103.0,0.327316]
[1728567166806,0.0001,61109.0,61104.0,0.163654]
[1728567167095,0.163647,61107.0,61100.0,0.163665]
[1728567167341,0.163647,61107.0,61099.0,0.327335]
[1728567167342,0.16083764,61107.0,61099.0,0.327335]
[1728567167575,0.163657,61104.0,61097.0,0.164492]
[1728567167788,0.163653,61105.0,61098.0,0.16367]
[1728567168001,0.16083764,61106.0,61100.0,0.163665]
[1728567168267,0.24571433,61105.0,61097.0,0.164491]
[1728567168474,0.163657,61104.0,61097.0,0.000818]
[1728567168692,0.163656,61104.0,61097.0,0.000818]
[1728567168909,0.163656,61104.0,61097.0,0.164491]
[1728567169142,0.16083764,61106.0,61098.0,0.002]
[1728567169380,0.163657,61104.0,61098.0,0.002]
[1728567169628,0.24571433,61105.0,61098.0,0.002]
[1728567169629,0.163668,61099.0,61098.0,0.002]
[1728567169858,0.327327,61101.0,61098.0,0.002]
[1728567170093,0.32450564,61099.0,61098.0,0.002]
[1728567170356,0.16083764,61100.0,61098.0,0.002]
[1728567170607,0.40938233,61099.0,61098.0,0.002]
[1728567170862,0.32450564,61099.0,61098.0,0.003]
[1728567171846,0.34750564,61099.0,61098.0,0.003]
[1728567172124,0.34750564,61099.0,61098.0,0.001]
[1728567172576,0.34750564,61099.0,61097.0,0.000818]
[1728567172577,0.186671,61098.0,61097.0,0.000818]
[1728567172805,0.44750864,61098.0,61097.0,0.000818]
[1728567174240,0.44750864,61098.0,61097.0,0.004818]
[1728567175540,0.44750864,61098.0,61097.0,0.003818]
[1728567176034,0.45650864,61098.0,61097.0,0.004818]
[1728567176255,0.45650864,61098.0,61097.0,0.001818]
[1728567176520,0.45650864,61098.0,61097.0,0.002818]
[1728567176521,0.43450864,61098.0,61097.0,0.002818]
[1728567176787,0.27083764,61098.0,61097.0,0.002818]
[1728567177673,0.17083764,61098.0,61097.0,0.002818]
[1728567180155,0.16183764,61098.0,61097.0,0.001818]
[1728567180415,0.16183764,61098.0,61097.0,0.165492]
[1728567180416,0.001,61098.0,61097.0,0.165492]
[1728567180628,0.01,61098.0,61097.0,0.002818]
[1728567180844,0.32450864,61098.0,61097.0,0.000818]
[1728567181057,0.16783764,61098.0,61097.0,0.001818]
[1728567181302,0.33150864,61098.0,61097.0,0.001818]
[1728567181946,0.33250864,61098.0,61097.0,0.002818]
[1728567182161,0.16883764,61098.0,61097.0,0.002818]
[1728567182618,0.16183764,61098.0,61097.0,0.001818]
[1728567182832,0.16883764,61098.0,61097.0,0.002818]
[1728567183049,0.16883764,61098.0,61097.0,0.001818]
[1728567183277,0.16783764,61098.0,61097.0,0.001818]
[1728567183483,0.17583764,61098.0,61097.0,0.002818]
[1728567183705,0.16183764,61098.0,61097.0,0.001818]
[1728567183919,0.16683764,61098.0,61097.0,0.001818]
[1728567184128,0.32950864,61098.0,61097.0,0.000818]
[1728567184341,0.16583764,61098.0,61097.0,0.000818]
[1728567184563,0.16683764,61098.0,61097.0,0.000818]
[1728567185468,0.16683764,61098.0,61097.0,0.082741]
[1728567185690,0.16183764,61098.0,61097.0,0.000818]
[1728567186134,0.32750864,61098.0,61097.0,0.000818]
[1728567186387,0.6057993,61098.0,61097.0,0.000818]
[1728567186608,0.6047993,61098.0,61097.0,0.000818]
[1728567186862,0.6057993,61098.0,61097.0,0.000818]
[1728567188356,0.85151363,61098.0,61097.0,0.000818]
[1728567188587,1.1128982,61098.0,61097.0,0.000818]
[1728567188821,1.1745513,61098.0,61097.0,0.000818]
[1728567189292,0.54200466,61082.0,61074.0,0.24571433]
[1728567189507,0.7838423,61082.0,61074.0,0.24571433]
[1728567189721,0.327435,61081.0,61074.0,0.24571433]
[1728567189941,0.6201283,61082.0,61074.0,0.24571433]
[1728567189942,0.163724,61079.0,61074.0,0.24571433]
[1728567190172,0.32456464,61078.0,61071.0,0.163743]
[1728567190385,0.16083764,61078.0,61071.0,0.163743]
[1728567190597,0.16083764,61078.0,61071.0,0.491227]
[1728567190811,0.16083764,61078.0,61072.0,0.327478]
[1728567191019,0.16083764,61078.0,61069.0,0.327496]
[1728567191235,0.1893863,61077.0,61070.0,0.163744]
[1728567191465,0.16083764,61076.0,61066.0,0.327509]
[1728567191679,0.16083764,61076.0,61059.0,0.01531846]
[1728567191895,0.0256573,61077.0,61076.0,0.16373]
[1728567192326,0.24571433,61080.0,61074.0,0.32747]
[1728567192540,0.24571433,61080.0,61079.0,0.163722]
[1728567192771,0.008,61082.0,61081.0,0.163717]
[1728567192981,0.163704,61086.0,61078.0,0.327446]
[1728567193192,0.16083764,61085.0,61080.0,0.163718]
[1728567193398,0.02565474,61083.0,61082.0,0.163714]
[1728567193612,0.02565474,61083.0,61081.0,0.163716]
[1728567193827,0.02565474,61083.0,61063.0,0.002]
[1728567193828,0.02565474,61083.0,61071.0,0.327482]
[1728567194057,0.02565474,61083.0,61069.0,0.0995]
[1728567194058,0.003,61076.0,61075.0,0.163732]
[1728567194273,0.003,61076.0,61063.0,0.005]
[1728567194274,0.163736,61074.0,61068.0,0.163749]
[1728567194480,0.327473,61074.0,61063.0,0.327529]
[1728567194690,0.14900008,61087.0,61067.0,0.327503]
[1728567194910,0.02965474,61083.0,61082.0,0.001]
[1728567195123,0.02965474,61083.0,61082.0,0.164714]
[1728567195418,0.02965474,61083.0,61082.0,0.163714]
[1728567195419,0.02565474,61083.0,61082.0,0.163714]
[1728567195681,0.163698,61089.0,61082.0,0.163714]
[1728567195889,0.001,61074.0,61073.0,0.163738]
[1728567197220,0.40940733,61090.0,61071.0,0.332486]
[1728567197457,0.24571433,61079.0,61078.0,0.163725]
[1728567197662,0.004,61083.0,61082.0,0.163714]
[1728567198150,0.16083764,61089.0,61083.0,0.16371]
[1728567198390,0.16083764,61089.0,61086.0,0.163702]
[1728567198642,0.16083764,61089.0,61085.0,0.163705]
[1728567199172,0.16083764,61089.0,61083.0,0.16371]
[1728567199664,0.004,61090.0,61082.0,0.654854]
[1728567199923,0.004,61090.0,61080.0,0.327437]
[1728567199924,0.01610959,61094.0,61092.0,0.163686]
[1728567200182,0.17694723,61094.0,61090.0,0.163692]
[1728567200420,0.17694723,61094.0,61089.0,0.327386]
[1728567200660,0.02565243,61089.0,61082.0,0.327428]
[1728567200884,0.03365243,61089.0,61088.0,0.163698]
[1728567201177,0.02565243,61089.0,61088.0,0.2129091]
[1728567201439,0.02565243,61089.0,61088.0,0.163698]
[1728567201736,0.001636,61098.0,61084.0,0.654828]
[1728567201737,0.001636,61098.0,61097.0,0.163674]
[1728567202463,0.24735033,61098.0,61095.0,0.163677]
[1728567202760,0.001636,61098.0,61096.0,0.163676]
[1728567203014,0.24571433,61097.0,61091.0,0.163688]
[1728567203244,0.24571433,61097.0,61088.0,0.002]
[1728567203245,0.4391283,61097.0,61088.0,0.002]
[1728567203511,0.16083764,61097.0,61091.0,0.327379]
[1728567203769,0.32451164,61097.0,61089.0,0.327387]
[1728567203984,0.16083764,61097.0,61091.0,0.163688]
[1728567204219,0.16083764,61097.0,61088.0,0.01]
[1728567204220,0.16083764,61096.0,61088.0,0.002]
[1728567204502,0.44198566,61089.0,61088.0,0.002]
[1728567204731,0.27829066,61094.0,61086.0,0.24571433]
[1728567204967,0.16083764,61093.0,61083.0,0.327419]
[1728567205221,0.32452164,61093.0,61087.0,0.1637]
[1728567205468,0.32452164,61093.0,61088.0,0.001]
[1728567205724,0.32452164,61093.0,61087.0,0.1637]
[1728567205970,0.16083764,61093.0,61090.0,0.163691]
[1728567206233,0.16083764,61093.0,61086.0,0.002]
[1728567206488,0.32452364,61093.0,61083.0,0.32742]
[1728567206773,0.33052364,61093.0,61086.0,0.163702]
[1728567207051,0.33052364,61093.0,61068.0,0.27829066]
[1728567207052,0.32452264,61093.0,61084.0,0.327415]
[1728567207303,0.32452264,61093.0,61087.0,0.163699]
[1728567207552,0.02565244,61091.0,61087.0,0.163699]
[1728567207755,0.33452264,61093.0,61088.0,0.001]
[1728567208519,0.33452264,61093.0,61080.0,0.327439]
[1728567208520,0.163709,61084.0,61078.0,0.163724]
[1728567208758,0.16683764,61093.0,61081.0,0.24571433]
[1728567208759,0.27829066,61085.0,61081.0,0.24571433]
[1728567208980,0.27829066,61085.0,61079.0,0.163719]
[1728567209251,0.27829066,61085.0,61076.0,0.327457]
[1728567209508,0.27829066,61081.0,61070.0,0.000818]
[1728567209765,0.01610566,61083.0,61078.0,0.163724]
[1728567210005,0.01610566,61083.0,61076.0,0.327456]
[1728567210006,0.24571433,61082.0,61077.0,0.163725]
[1728567210262,0.01610566,61083.0,61079.0,0.003]
[1728567210511,0.17981766,61083.0,61077.0,0.163727]
[1728567210779,0.17981766,61083.0,61076.0,0.330456]
[1728567210780,0.02565537,61081.0,61076.0,0.330456]
[1728567211012,0.02565537,61081.0,61079.0,0.163721]
[1728567211433,0.02565537,61081.0,61074.0,0.327469]
[1728567211702,0.02565537,61081.0,61078.0,0.163724]
[1728567212740,0.02565537,61081.0,61078.0,0.163722]
[1728567213008,0.02565537,61081.0,61077.0,0.327453]
[1728567213230,0.02565537,61081.0,61078.0,0.165724]
[1728567213475,0.02565537,61081.0,61079.0,0.16372]
[1728567213699,0.02565537,61081.0,61078.0,0.163724]
[1728567213940,0.02865537,61081.0,61078.0,0.163724]
[1728567214182,0.02865537,61081.0,61080.0,0.163719]
[1728567214483,0.03265537,61081.0,61080.0,0.163719]
[1728567215489,0.003,61081.0,61080.0,0.163719]
[1728567215727,0.007,61081.0,61080.0,0.163719]
[1728567215952,0.004,61081.0,61080.0,0.163719]
[1728567216219,0.007,61081.0,61080.0,0.163719]
[1728567216454,0.007,61081.0,61080.0,0.2460815]
[1728567216701,0.24571433,61097.0,61089.0,0.005]
[1728567217021,0.24571433,61097.0,61081.0,0.1]
[1728567217022,0.24571433,61097.0,61096.0,0.163676]
[1728567217278,0.24571433,61097.0,61096.0,0.268676]
[1728567217495,0.001836,61098.0,61097.0,0.268674]
[1728567219051,0.001836,61098.0,61097.0,0.277674]
[1728567219942,0.001836,61098.0,61097.0,0.458674]
[1728567220448,0.001836,61098.0,61097.0,0.456674]
[1728567220716,0.002836,61098.0,61097.0,0.462674]
[1728567220971,0.002836,61098.0,61097.0,0.362674]
[1728567221237,0.002836,61098.0,61097.0,0.183674]
[1728567221892,0.002836,61098.0,61097.0,0.02]
[1728567222542,0.002836,61098.0,61097.0,0.183674]
[1728567222788,0.001836,61098.0,61097.0,0.172674]
[1728567223230,0.001836,61098.0,61097.0,0.174674]
[1728567223870,0.001836,61098.0,61097.0,0.011]
[1728567224081,0.001836,61098.0,61097.0,0.002]
[1728567224326,0.32634464,61098.0,61097.0,0.002]
[1728567225871,0.32634464,61098.0,61086.0,0.163703]
[1728567225872,0.16467364,61098.0,61086.0,0.163703]
[1728567226102,0.27829066,61093.0,61086.0,0.163703]
[1728567226334,0.16369,61091.0,61085.0,0.163705]
[1728567226553,0.4391283,61093.0,61083.0,0.24571433]
[1728567226554,0.4391283,61093.0,61083.0,0.16371]
[1728567226555,0.163694,61090.0,61083.0,0.16371]
[1728567226805,0.27829066,61089.0,61080.0,0.327438]
[1728567227051,0.27829066,61089.0,61074.0,0.24571433]
[1728567227052,0.27829066,61085.0,61081.0,0.163716]
[1728567227272,0.27829066,61085.0,61079.0,0.163719]
[1728567227273,0.4391283,61085.0,61079.0,0.163719]
[1728567227482,0.4391283,61085.0,61072.0,0.000818]
[1728567227483,0.27829066,61081.0,61075.0,0.16373]
[1728567227711,0.27829066,61081.0,61076.0,0.163729]
[1728567228182,0.27829066,61081.0,61075.0,0.327465]
[1728567228183,0.16083764,61084.0,61075.0,0.327465]
[1728567228381,0.16083764,61084.0,61073.0,0.327473]
[1728567228382,0.24571433,61083.0,61078.0,0.327447]
[1728567228604,0.24571433,61083.0,61075.0,0.327465]
[1728567228605,0.16083764,61082.0,61075.0,0.327465]
[1728567228824,0.01529032,61081.0,61078.0,0.163724]
[1728567229049,0.01529032,61080.0,61077.0,0.163726]
[1728567229269,0.01529032,61079.0,61077.0,0.163726]
[1728567229497,0.18649333,61082.0,61077.0,0.163727]
[1728567229498,0.01529032,61078.0,61077.0,0.163727]
[1728567229959,0.02565569,61082.0,61081.0,0.163717]
[1728567230204,0.01528803,61082.0,61081.0,0.163717]
[1728567231986,0.01528803,61082.0,61081.0,0.158717]
[1728567232876,0.02565446,61088.0,61087.0,0.1637]
[1728567233601,0.40938333,61099.0,61087.0,0.327399]
[1728567233818,0.40938333,61099.0,61088.0,0.00323854]
[1728567233819,0.24571433,61092.0,61088.0,0.00323854]
[1728567234034,0.33979774,61097.0,61090.0,0.163691]
[1728567234256,0.24571433,61092.0,61090.0,0.163691]
[1728567234505,0.0152851,61091.0,61090.0,0.491077]
[1728567235985,0.001,61091.0,61090.0,0.491077]
[1728567236248,0.0162851,61091.0,61090.0,0.491077]
[1728567236725,0.0162851,61091.0,61085.0,0.327407]
[1728567236981,0.0162851,61091.0,61084.0,0.327414]
[1728567236982,0.0152851,61090.0,61084.0,0.327414]
[1728567237245,0.0152851,61090.0,61081.0,0.001636]
[1728567237246,0.27829066,61088.0,61082.0,0.327426]
[1728567237464,0.001,61091.0,61082.0,0.327426]
[1728567237465,0.0152851,61087.0,61083.0,0.327422]
[1728567237702,0.001,61091.0,61083.0,0.327422]
[1728567237703,0.0152851,61086.0,61085.0,0.163705]
[1728567238924,0.0152851,61086.0,61085.0,0.163706]
[1728567239169,0.0152851,61086.0,61085.0,0.158706]
[1728567239656,0.36282574,61086.0,61085.0,0.005]
[1728567239866,0.36282574,61086.0,61085.0,0.009]
[1728567240083,0.56938055,61086.0,61085.0,0.004]
[1728567240300,0.56938055,61086.0,61081.0,0.001636]
[1728567240301,0.291714,61082.0,61081.0,0.001636]
[1728567240515,1.09655364,61082.0,61081.0,0.001636]
[1728567240743,1.09655364,61082.0,61072.0,0.000818]
[1728567240745,0.163738,61073.0,61072.0,0.000818]
[1728567240961,0.163738,61073.0,61070.0,0.000818]
[1728567240963,0.168743,61071.0,61070.0,0.000818]
[1728567241233,0.168743,61071.0,61035.0,0.00808]
[1728567241234,0.1,61061.0,61037.0,0.327669]
[1728567241433,0.1,61061.0,61035.0,0.00308]
[1728567241435,0.263808,61047.0,61046.0,0.24571433]
[1728567241646,0.263808,61047.0,61035.0,0.00308]
[1728567241647,0.163835,61037.0,61035.0,0.00308]
[1728567241859,0.17912629,61037.0,61035.0,0.00308]
[1728567242085,0.17912629,61037.0,61035.0,0.00082]
[1728567242086,0.55284062,61037.0,61035.0,0.00082]
[1728567242343,0.291837,61036.0,61035.0,0.00082]
[1728567242572,0.291851,61031.0,61030.0,0.000819]
[1728567242793,0.58543295,61031.0,61030.0,0.000819]
[1728567243015,0.58743295,61031.0,61030.0,0.000819]
[1728567243278,0.43972329,61031.0,61030.0,0.000819]
[1728567243499,1.15552595,61031.0,61030.0,0.000819]
[1728567243743,1.10122595,61031.0,61030.0,0.000819]
[1728567243971,1.04238795,61031.0,61030.0,0.000819]
[1728567244191,0.60976254,61031.0,61030.0,0.000819]
[1728567244399,0.62595275,61031.0,61030.0,0.000819]
[1728567244618,0.62095275,61031.0,61030.0,0.000819]
[1728567244833,0.21664873,61031.0,61030.0,0.000819]
[1728567245079,0.01529129,61031.0,61030.0,0.164672]
[1728567245299,0.009,61031.0,61030.0,0.165672]
[1728567245514,0.327642,61043.0,61034.0,0.163842]
[1728567245515,0.163827,61040.0,61034.0,0.163842]
[1728567245727,0.163827,61040.0,61032.0,0.163847]
[1728567245728,0.24571433,61035.0,61032.0,0.163847]
[1728567245950,0.32466964,61039.0,61032.0,0.163847]
[1728567246222,0.32466964,61039.0,61030.0,0.329524]
[1728567246223,0.327606,61049.0,61030.0,0.000819]
[1728567246501,0.25071433,61055.0,61030.0,0.000819]
[1728567246502,0.03940235,61046.0,61035.0,0.327678]
[1728567246699,0.24571433,61040.0,61039.0,0.163829]
[1728567246908,0.24571433,61047.0,61032.0,0.005]
[1728567246909,0.24571433,61047.0,61036.0,0.01107053]
[1728567247157,0.24571433,61047.0,61032.0,0.005]
[1728567247158,0.24571433,61047.0,61042.0,0.327641]
[1728567247377,0.24571433,61047.0,61044.0,0.163815]
[1728567247849,0.24571433,61047.0,61034.0,0.327684]
[1728567247850,0.163774,61060.0,61053.0,0.16379]
[1728567248063,0.163774,61060.0,61045.0,0.01114485]
[1728567248064,0.24571433,61054.0,61045.0,0.01114485]
[1728567248272,0.16083764,61060.0,61053.0,0.163789]
[1728567248479,0.24571433,61058.0,61054.0,0.163788]
[1728567248748,0.01515502,61057.0,61054.0,0.163788]
[1728567249016,0.24571433,61058.0,61054.0,0.163788]
[1728567249432,0.01516062,61057.0,61054.0,0.163788]
[1728567249663,0.24571433,61058.0,61044.0,0.001]
[1728567249906,0.01516063,61057.0,61044.0,0.001]
[1728567250118,0.01516063,61056.0,61044.0,0.001]
[1728567250341,0.01516063,61056.0,61055.0,0.163786]
[1728567250556,0.005,61058.0,61047.0,0.327611]
[1728567250557,0.01,61058.0,61057.0,0.163781]
[1728567251215,0.01,61058.0,61057.0,0.52331864]
[1728567251216,0.005,61058.0,61057.0,0.52331864]
[1728567251429,0.005,61058.0,61057.0,0.52131864]
[1728567251852,0.005,61058.0,61057.0,0.96130619]
[1728567252083,0.005,61058.0,61057.0,0.355481]
[1728567252354,0.0002,61060.0,61050.0,0.327598]
[1728567252355,0.0002,61060.0,61051.0,0.1]
[1728567252598,0.0002,61060.0,61042.0,0.0967]
[1728567252599,0.44598755,61058.0,61052.0,0.163794]
[1728567252830,0.004,61056.0,61053.0,0.16379]
[1728567253301,0.004,61056.0,61049.0,0.327604]
[1728567253302,0.24571433,61057.0,61049.0,0.163801]
[1728567253512,0.0394792,61056.0,61054.0,0.163788]
[1728567253735,0.0151822,61055.0,61051.0,0.001]
[1728567253945,0.24571433,61057.0,61051.0,0.003]
[1728567253946,0.0151822,61054.0,61051.0,0.003]
[1728567254159,0.0151822,61053.0,61051.0,0.165797]
[1728567254373,0.0151822,61052.0,61051.0,0.002]
[1728567254587,0.24571433,61057.0,61051.0,0.002]
[1728567254588,0.02566659,61054.0,61051.0,0.002]
[1728567254801,0.0151822,61053.0,61052.0,0.163794]
[1728567255010,0.0151822,61053.0,61051.0,0.165795]
[1728567255221,0.0151822,61053.0,61052.0,0.163794]
[1728567255439,0.0151822,61053.0,61052.0,0.17454535]
[1728567255869,0.16083764,61056.0,61052.0,0.17454535]
[1728567255870,0.0151822,61055.0,61052.0,0.01075135]
[1728567256125,0.0151822,61055.0,61052.0,0.17454435]
[1728567256382,0.0151822,61055.0,61048.0,0.32761]
[1728567256383,0.02431034,61054.0,61053.0,0.0107449]
[1728567256821,0.02431034,61054.0,61052.0,0.163793]
[1728567256822,0.0395043,61054.0,61052.0,0.166793]
[1728567257034,0.16083764,61056.0,61053.0,0.0107449]
[1728567257246,0.03951315,61055.0,61053.0,0.0107449]
[1728567257458,0.03951315,61055.0,61052.0,0.001]
[1728567257459,0.03951315,61054.0,61052.0,0.001]
[1728567257711,0.03951315,61053.0,61052.0,0.001]
[1728567258143,0.36414279,61053.0,61052.0,0.001]
[1728567258358,0.80413034,61053.0,61052.0,0.001]
[1728567258564,0.80413034,61053.0,61045.0,0.163813]
[1728567258565,0.64033834,61053.0,61041.0,0.327648]
[1728567258771,0.163798,61051.0,61043.0,0.491453]
[1728567259048,0.20035079,61050.0,61043.0,0.163816]
[1728567259268,0.20035079,61050.0,61044.0,0.01080298]
[1728567259269,0.03951315,61049.0,61044.0,0.01080298]
[1728567259778,0.16083764,61048.0,61045.0,0.01079653]
[1728567259995,0.03951315,61047.0,61045.0,0.01079653]
[1728567260256,0.16083764,61046.0,61042.0,0.16382]
[1728567260474,0.16083764,61046.0,61037.0,0.32767]
[1728567260475,0.03951315,61045.0,61037.0,0.32767]
[1728567260703,0.16382,61043.0,61036.0,0.163836]
[1728567260934,0.16382,61043.0,61032.0,0.000818]
[1728567260935,0.20333515,61042.0,61035.0,0.163838]
[1728567261168,0.20333515,61042.0,61032.0,0.000818]
[1728567261169,0.03951315,61041.0,61032.0,0.000818]
[1728567261392,0.03951315,61041.0,61040.0,0.163826]
[1728567261626,0.03951315,61042.0,61039.0,0.327658]
[1728567261884,0.03951315,61041.0,61040.0,0.163826]
[1728567262331,0.03955612,61041.0,61040.0,0.163824]
[1728567262588,0.01521389,61041.0,61035.0,0.327676]
[1728567262841,0.16083764,61043.0,61032.0,0.328512]
[1728567262842,0.03955869,61040.0,61039.0,0.163829]
[1728567263084,0.03955869,61040.0,61036.0,0.327674]
[1728567263085,0.02434223,61040.0,61036.0,0.327674]
[1728567263302,0.16383764,61043.0,61038.0,0.327663]
[1728567263303,0.01521646,61039.0,61038.0,0.327663]
[1728567263557,0.001,61041.0,61038.0,0.327663]
[1728567263822,0.01521828,61040.0,61039.0,0.163828]
[1728567264072,0.01521828,61040.0,61032.0,0.000818]
[1728567264073,0.01521828,61040.0,61037.0,0.163833]
[1728567264313,0.01521828,61040.0,61032.0,0.000818]
[1728567264314,0.01521828,61039.0,61032.0,0.000818]
[1728567264536,0.02567156,61047.0,61032.0,0.000818]
[1728567264768,0.02567156,61047.0,61045.0,0.163813]
[1728567264769,0.03958716,61046.0,61045.0,0.163813]
[1728567265049,0.01522586,61046.0,61045.0,0.163813]
[1728567265300,1.47891388,61067.0,61059.0,0.163776]
[1728567265301,0.24591433,61060.0,61059.0,0.163776]
[1728567265562,0.26114571,61060.0,61059.0,0.163776]
[1728567265982,0.01543138,61060.0,61059.0,0.163776]
[1728567266490,0.01542984,61060.0,61059.0,0.163776]
[1728567266781,0.01742984,61060.0,61059.0,0.163776]
[1728567267968,0.01742984,61060.0,61047.0,0.11520898]
[1728567268268,0.01742984,61060.0,61057.0,0.163779]
[1728567268269,0.03962545,61059.0,61057.0,0.163779]
[1728567268487,0.31838459,61058.0,61056.0,0.163782]
[1728567268737,0.31838459,61058.0,61041.0,0.11522972]
[1728567268738,0.03962545,61057.0,61055.0,0.163784]
[1728567268952,0.03962545,61056.0,61053.0,0.163791]
[1728567269179,0.03962545,61055.0,61053.0,0.327583]
[1728567269403,0.03970237,61054.0,61053.0,0.491375]
[1728567270397,0.03970237,61054.0,61053.0,0.50417503]
[1728567270398,0.01527014,61054.0,61053.0,0.50417503]
[1728567270659,0.03970237,61054.0,61053.0,0.50417503]
[1728567270906,0.03970237,61054.0,61053.0,0.01580003]
[1728567272136,0.03970237,61054.0,61053.0,0.01080003]
[1728567272355,0.03970237,61054.0,61053.0,0.167792]
[1728567272585,0.03970237,61054.0,61053.0,0.169792]
[1728567272814,0.03970237,61054.0,61053.0,0.165792]
[1728567273068,0.03970237,61054.0,61053.0,0.002]
[1728567273312,0.03970237,61054.0,61053.0,0.166792]
[1728567273767,0.03970237,61054.0,61053.0,0.003]
[1728567274215,0.03970237,61054.0,61053.0,0.2326116]
[1728567274674,0.03970237,61054.0,61053.0,0.166792]
[1728567275465,0.31846151,61054.0,61053.0,0.003]
[1728567276402,0.03970237,61054.0,61053.0,0.003]
[1728567276875,0.64308815,61054.0,61053.0,0.003]
[1728567277562,0.66608815,61054.0,61053.0,0.003]
[1728567277784,0.66608815,61054.0,61035.0,0.24571433]
[1728567277785,0.27875914,61041.0,61035.0,0.24571433]
[1728567278008,0.27875914,61041.0,61036.0,0.327672]
[1728567278009,0.03970237,61040.0,61036.0,0.327672]
[1728567278302,0.27875914,61041.0,61036.0,0.0108265]
[1728567278303,0.01527014,61039.0,61036.0,0.0108265]
[1728567278496,0.27875914,61037.0,61036.0,0.0108265]
[1728567278730,0.17610778,61037.0,61036.0,0.0108265]
[1728567279214,0.45486692,61037.0,61032.0,0.000818]
[1728567279487,0.46560414,61033.0,61032.0,0.000818]
[1728567279733,0.62644178,61033.0,61032.0,0.000818]
[1728567279977,0.64171192,61033.0,61032.0,0.000818]
[1728567280676,0.64171192,61033.0,61032.0,0.001818]
[1728567281164,0.64171192,61033.0,61032.0,0.000818]
[1728567281665,0.20178521,61033.0,61032.0,0.001818]
[1728567281900,0.20178521,61033.0,61032.0,0.000818]
[1728567282160,0.18610778,61033.0,61032.0,0.001818]
[1728567282867,0.19610778,61033.0,61032.0,0.002818]
[1728567283113,0.19614523,61033.0,61032.0,0.002818]
[1728567283392,0.19614523,61033.0,61032.0,0.166666]
[1728567283393,0.03530759,61033.0,61032.0,0.166666]
[1728567285230,0.03530759,61033.0,61032.0,0.17785872]
[1728567286386,0.03530759,61033.0,61032.0,0.17585872]
[1728567286387,0.01530759,61033.0,61032.0,0.17585872]
[1728567286605,0.01830759,61033.0,61032.0,0.17585872]
[1728567286825,0.02130759,61033.0,61032.0,0.17585872]
[1728567287050,0.01830759,61033.0,61032.0,0.17585872]
[1728567287271,0.29706673,61033.0,61032.0,0.01201072]
[1728567287493,0.30006673,61033.0,61032.0,0.01201072]
[1728567287962,0.29406673,61033.0,61032.0,0.01201072]
[1728567288446,0.29406673,61033.0,61032.0,0.17585872]
[1728567288447,0.01830759,61033.0,61032.0,0.17585872]
[1728567288680,0.01530759,61033.0,61032.0,0.17585872]
[1728567288900,0.01830759,61033.0,61032.0,0.17585872]
[1728567289369,0.01830759,61033.0,61032.0,0.01201072]
[1728567289591,0.01829354,61033.0,61032.0,0.17585872]
[1728567289824,0.01829354,61033.0,61032.0,0.17785872]
[1728567290271,0.01829354,61033.0,61032.0,0.17585872]
[1728567290713,0.02129354,61033.0,61032.0,0.17585872]
[1728567292605,0.02129354,61033.0,61032.0,0.01201072]
[1728567292825,0.02129136,61033.0,61032.0,0.01201072]
[1728567293062,0.345974,61033.0,61032.0,0.01201072]
[1728567293563,0.345974,61033.0,61032.0,0.000818]
[1728567293788,0.3716509,61033.0,61032.0,0.000818]
[1728567295160,0.2078059,61033.0,61032.0,0.000818]
[1728567295644,0.3716509,61033.0,61032.0,0.01205019]
[1728567295878,0.41091751,61033.0,61032.0,0.000818]
[1728567296371,0.43537653,61033.0,61032.0,0.000818]
[1728567296814,0.41910525,61033.0,61032.0,0.000818]
[1728567297943,0.25526025,61033.0,61032.0,0.000818]
[1728567298167,0.41910525,61033.0,61032.0,0.000818]
[1728567298596,0.39342835,61033.0,61032.0,0.000818]
[1728567299312,0.39288451,61033.0,61032.0,0.000818]
[1728567300042,0.75384365,61033.0,61032.0,0.000818]
[1728567300325,0.75384365,61033.0,61030.0,0.000819]
[1728567300327,0.270851,61031.0,61030.0,0.000819]
[1728567300561,0.62590364,61031.0,61030.0,0.000819]
[1728567300818,0.62590364,61031.0,61020.0,0.000818]
[1728567300821,0.168878,61021.0,61020.0,0.000818]
[1728567301054,0.168878,61021.0,61015.0,0.000818]
[1728567301056,0.291888,61017.0,61015.0,0.000818]
[1728567301293,0.291888,61017.0,60992.0,0.24571433]
[1728567301294,0.84942228,61011.0,60992.0,0.24571433]
[1728567301534,0.73150078,61011.0,60992.0,0.24571433]
[1728567301809,1.50090269,61011.0,61005.0,0.00262]
[1728567302042,0.88836255,61011.0,61005.0,0.00262]
[1728567302270,0.89389655,61011.0,61005.0,0.00262]
[1728567302492,0.89389655,61011.0,60992.0,0.40966833]
[1728567302493,0.87279655,61011.0,60992.0,0.40966833]
[1728567302706,0.77127913,61011.0,60992.0,0.57362033]
[1728567302937,0.77127913,61011.0,61010.0,0.0011]
[1728567302938,0.78327913,61011.0,61010.0,0.0011]
[1728567303619,0.78327913,61011.0,61010.0,0.0021]
[1728567303620,0.79727913,61011.0,61010.0,0.0021]
[1728567304317,0.79727913,61011.0,60979.0,0.24571433]
[1728567304318,0.79727913,61011.0,60987.0,0.24571433]
[1728567304320,0.186931,61001.0,60987.0,0.24571433]
[1728567304552,0.66630613,61001.0,60987.0,0.24571433]
[1728567305036,0.66630613,61001.0,60989.0,0.327924]
[1728567305257,0.66630613,61001.0,60979.0,0.24571433]
[1728567305490,0.68295243,61001.0,60989.0,0.163962]
[1728567305717,0.68295243,61001.0,60987.0,0.163968]
[1728567305949,0.68295243,61001.0,60986.0,0.163972]
[1728567305950,0.78795243,61001.0,60986.0,0.163972]
[1728567306191,0.78795243,61001.0,61000.0,0.01318225]
[1728567306192,0.80195243,61001.0,61000.0,0.01318225]
[1728567307538,0.78795243,61001.0,61000.0,0.01218225]
[1728567307986,0.80195243,61001.0,61000.0,0.01218225]
[1728567308908,0.80395243,61001.0,61000.0,0.01218225]
[1728567309133,0.80395243,61001.0,61000.0,0.01300025]
[1728567309625,1.09304243,61001.0,61000.0,0.01300025]
[1728567309852,0.81095243,61001.0,61000.0,0.01300025]